Cogmind - Beta 13 @@@ ROGUE MODE // 2024.07.10 @ 14:10:12 Player: George Result: Self-destructed Performance ------------- Evolutions (2) 1000 Regions Visited (5) 1000 Robots Destroyed (35) 175 Value Destroyed (534) 534 Prototype IDs (6) 120 Alien Tech Used (0) 0 Bonus (-20) -20 TOTAL SCORE: 2809 Bonus ------- Follower Combat Kills 52 Aligned with FarCom 300 Friendly Fire -372 Cogmind --------- Core Integrity 550/550 Matter 164/300 Energy 9/125 System Corruption 0% Temperature Cool (0) Movement Walking (120) Location -8/Materials Parts ------- > --- POWER (1) -------- Light Ion Engine (fused) > --- PROPULSION (4) --- Aluminum Leg Aluminum Leg Aluminum Leg > --- UTILITY (4) ------ Medium Storage Unit Experimental Sensor Array Shield Generator > --- WEAPON (2) ------- Light Assault Rifle Minigun > --- INVENTORY (10) --- Light Ion Engine Aluminum Leg Aluminum Leg High-capacity Matter Pod (200) Advanced Weight Redist. System Sensor Array Shield Generator Improved Medium Laser Advanced Beam Cannon Heavy Assault Rifle Peak State ------------ > --- POWER ------------ Light Ion Engine > --- PROPULSION ------- Aluminum Leg Aluminum Leg > --- UTILITY ---------- High-capacity Storage Unit Experimental Sensor Array > --- WEAPON ----------- Field Lobotomy Kit Enhanced Flamer > --- INVENTORY -------- Light Ion Engine Light Ion Engine Aluminum Leg Aluminum Leg Aluminum Leg High-capacity Matter Pod Sensor Array Light Armor Plating Shield Generator Shield Generator Light Assault Rifle Shotgun Mining Laser [Rating: 27] Favorites ----------- Power Light Ion Engine Engine Light Ion Engine Propulsion Aluminum Leg Treads Light Treads Leg Aluminum Leg Wheel Wheel Utility Medium Storage Unit Device Sensor Array Storage Medium Storage Unit Protection Light Armor Plating Weapon Shotgun Energy Gun Medium Laser Energy Cannon Beam Cannon Ballistic Gun Shotgun Special Weapon Enhanced Flamer Slashing Weapon Mining Claw Build | -11 -10 -10 -10 -9 -8 ------- Run | Yrd Mat Min Exi Min Mat Slots Evolved 4 | . . . . . 4 Power . | . . . . . . Propulsion 2 | . . . . . 2 Utility 2 | . . . . . 2 Weapon . | . . . . . . Parts Attached 67 | 12 16 16 5 5 13 Power 10 | 1 4 5 . . . Engine 10 | 1 4 5 . . . Core . | . . . . . . Reactor . | . . . . . . Propulsion 11 | 4 3 1 . 1 2 Treads 1 | 1 . . . . . Leg 9 | 2 3 1 . 1 2 Wheel 1 | 1 . . . . . Hover . | . . . . . . Flight . | . . . . . . Utility 24 | 5 4 5 4 1 5 Device 14 | 4 1 4 2 1 2 Storage 7 | 1 3 . 2 . 1 Processor . | . . . . . . Hackware . | . . . . . . Protection 3 | . . 1 . . 2 Artifact . | . . . . . . Weapon 22 | 2 5 5 1 3 6 Energy Gun 2 | . 1 . . . 1 Energy Cannon 2 | . 1 . . . 1 Ballistic Gun 14 | 2 3 3 . 2 4 Ballistic Cannon . | . . . . . . Launcher . | . . . . . . Special Weapon 3 | . . 1 1 1 . Impact Weapon . | . . . . . . Slashing Weapon 1 | . . 1 . . . Piercing Weapon . | . . . . . . Special Melee Weapon . | . . . . . . Unidentified Prototypes 6 | . . 1 2 1 2 Parts Lost 6 | . 2 1 . 2 1 Power . | . . . . . . Propulsion 2 | . 1 . . 1 . Utility 3 | . 1 1 . . 1 Weapon 1 | . . . . 1 . Highest Loss Streak 1 | . 1 1 . 1 1 To Critical Strikes . | . . . . . . Average Slot Usage (%) 99 | . 99 99 99 97 100 Engine 13 | . 14 14 14 14 9 Leg 28 | . 27 28 28 26 36 Device 12 | . 13 5 13 14 18 Storage 13 | . 14 14 14 14 9 Protection 1 | . . 7 . . 9 Energy Gun 1 | . 5 . . . 4 Energy Cannon 1 | . 3 . . . . Ballistic Gun 15 | . 18 23 14 7 13 Special Weapon 8 | . . . 14 18 . Naked Turns . | . . . . . . Heaviest Build 55 | 11 20 23 55 55 53 Greatest Support 40 | 20 20 20 20 20 40 Greatest Overweight (x) 5 | . 1 1 2 5 1 Average Overweight (x) . | . . . 1 2 . Largest Inventory Capacity 20 | 8 15 10 20 20 20 Average Capacity 14 | 7 9 10 17 20 11 Most Carried 15 | 7 10 10 11 15 14 Average Carried 10 | 4 9 9 10 12 10 Final Capacity 20 | 8 10 10 20 20 10 Final Carried 15 | 6 10 10 11 15 10 Class Distribution -------------------- 79% | Mutant 16% | Skirmisher 3% | Scavenger-Skirmisher Dominant Class ---------------- Mutant | -10/Materials Mutant | -10/Mines Mutant | -10/Exiles Skirmisher | -9/Mines Scavenger-Skirmisher | -8/Materials Resources | -11 -10 -10 -10 -9 -8 ----------- Run | Yrd Mat Min Exi Min Mat Matter Collected 1304 | 362 393 290 166 93 . Remotely . | . . . . . . Salvage Created 787 | 169 412 190 . . 16 Parts 61 | 10 30 17 . . 4 Haulers Intercepted . | . . . . . . Recyclers Shooed 1 | . 1 . . . . Parts Field Recycled . | . . . . . . Retrieved Matter . | . . . . . . Parts Self-Destructed . | . . . . . . Prevented . | . . . . . . Kills | -11 -10 -10 -10 -9 -8 ------- Run | Yrd Mat Min Exi Min Mat Combat Hostiles Destroyed 23 | . 14 9 . . . Guns 19 | . 10 9 . . . Cannons 4 | . 4 . . . . Classes Destroyed 7 | 3 3 . . . 1 Worker 3 | 2 1 . . . . Tunneler 4 | 2 . 1 . . 1 Recycler 1 | 1 . . . . . Watcher 2 | . 2 . . . . Swarmer 15 | . 8 7 . . . Grunt 9 | . 6 2 . . 1 Demolisher 1 | . . . . . 1 Best Kill Streak 4 | 2 4 3 . . 1 Combat Bots Only 3 | . 3 2 . . . Max Kills in Single Turn 3 | 1 2 1 . . 3 Gunslinging 1 | . 1 . . . . Exploded . | . . . . . . Melee . | . . . . . . Uniques/NPCs Destroyed . | . . . . . . Combat | -11 -10 -10 -10 -9 -8 -------- Run | Yrd Mat Min Exi Min Mat Hostile Shots Fired 164 | . 77 76 . 11 . Missed 41 | . 20 19 . 2 . Damage Taken 1372 | . 502 569 . 157 144 Core 163 | . 69 83 . 11 . Absorbed by Shields 21 | . . . . . 21 Regen/Repaired (Parts) 56 | . 56 . . . . Core Remaining (%) 67 | 100 . . . 34 . Volleys Fired 108 | 21 44 35 1 5 2 Largest 2 | 2 2 2 2 1 2 Hottest 103 | 40 83 46 103 . 45 Shots Fired 187 | 42 81 52 3 5 4 Gun 159 | 42 59 52 2 . 4 Cannon 22 | . 22 . . . . Launcher . | . . . . . . Special 6 | . . . 1 5 . Kinetic 146 | 42 46 52 2 . 4 Thermal 36 | . 35 . 1 . . Explosive . | . . . . . . Electromagnetic . | . . . . . . Robot Hit Streak 8 | 8 5 5 . 2 2 Robot Miss Streak 8 | 3 8 6 . 2 2 Penetration Max . | . . . . . . Secondary Targets 1 | . 1 . . . . Max Gunslinging Chain 1 | . 1 . . . . Shots Hit Robots 98 | 26 38 29 . 3 2 Core Hits 50 | 10 24 13 . . 3 Critical Kills . | . . . . . . Critical Parts Destroyed . | . . . . . . Critical Strikes 1 | . 1 . . . . Burn 1 | . 1 . . . . Melee Attacks 5 | . . 5 . . . Impact . | . . . . . . Slashing 5 | . . 5 . . . Piercing . | . . . . . . Sneak Attacks 2 | . . 2 . . . Combat Hostiles . | . . . . . . Follow-up Attacks . | . . . . . . Damage Inflicted 1635 | 221 619 488 . 7 300 Guns 1001 | 221 365 392 . . 23 Cannons 245 | . 245 . . . . Explosions 277 | . . . . . 277 Melee 96 | . . 96 . . . Ramming 16 | . 9 . . 7 . Kinetic 926 | 221 290 392 . . 23 Thermal 597 | . 320 . . . 277 Explosive . | . . . . . . Electromagnetic . | . . . . . . Impact . | . . . . . . Slashing 96 | . . 96 . . . Piercing . | . . . . . . Highest Corruption 1 | . 1 1 1 1 . Average Corruption 1 | . 1 1 1 1 . Corruption Purged . | . . . . . . Corruption Blocked . | . . . . . . Effects 33 | . 8 5 12 8 . Message Errors 12 | . 2 2 4 4 . Matter Fused 7 | . 1 2 3 1 . Heat Flow Errors 3 | . 1 . 1 1 . Energy Discharges 1 | . 1 . . . . Parts Fused 1 | . . . 1 . . Data Loss (minor) 2 | . . 1 1 . . Data Loss (major) 3 | . 2 . . 1 . Misfires 1 | . . . 1 . . Alerts 2 | . . . 1 1 . Weapon Failures 1 | . 1 . . . . Overload Shots . | . . . . . . Overflow Damage 16 | . . 7 . . 9 Projectiles . | . . . . . . Explosions 9 | . . . . . 9 Melee 7 | . . 7 . . . Knockbacks . | . . . . . . Impact . | . . . . . . Kinetic . | . . . . . . Secondary . | . . . . . . Self-Inflicted Damage 165 | . . . . . 165 Shots 2 | . . . . . 2 Rammed . | . . . . . . Targets Rammed 8 | . 7 . . 1 . Kicked 8 | . 7 . . 1 . Crushed . | . . . . . . Highest Temperature 178 | . 178 13 136 125 . Average Temperature 44 | . 46 6 50 68 . Received Heat Transfer 285 | . 90 159 . 36 . Siege Activations . | . . . . . . Robots Corrupted . | . . . . . . Combat Hostiles . | . . . . . . Parts Fried . | . . . . . . Impact Corruptions . | . . . . . . Robots Melted . | . . . . . . Combat Hostiles . | . . . . . . Parts Melted . | . . . . . . Heat Transferred 1064 | . 814 . . . 250 Parts Sabotaged . | . . . . . . Parts Stolen . | . . . . . . Parts Stripped . | . . . . . . Power Chain Reactions . | . . . . . . Alert | -11 -10 -10 -10 -9 -8 ------- Run | Yrd Mat Min Exi Min Mat Peak Influence 263 | 25 263 213 . 35 79 Initial 97 | . 16 97 . . . Average 74 | 14 106 137 . 11 1 Maximum Alert Level 1 | . 1 1 . . . Low Security (%) 87 | 100 72 94 . 100 100 Level 1 12 | . 27 5 . . . Level 2 . | . . . . . . Level 3 . | . . . . . . Level 4 . | . . . . . . Level 5 . | . . . . . . High Security . | . . . . . . Max Security . | . . . . . . Squads Dispatched 3 | . 3 . . . . Investigation 2 | . 2 . . . . Extermination . | . . . . . . Reinforcement 1 | . 1 . . . . Assault . | . . . . . . Garrison . | . . . . . . Intercept . | . . . . . . Searches Triggered . | . . . . . . Construction Impeded . | . . . . . . Haulers Reinforced . | . . . . . . Active Scanning Responses . | . . . . . . Cargo Convoy Interrupts . | . . . . . . Stealth | -11 -10 -10 -10 -9 -8 --------- Run | Yrd Mat Min Exi Min Mat Distress Signals 1 | . . 1 . . . Communications Jammed . | . . . . . . Distress Signals . | . . . . . . Times Spotted 49 | . 26 16 . 6 1 Peak Tracking Total 5 | . 5 3 . 3 1 Tactical Retreats 4 | . . 4 . . . Traps | -11 -10 -10 -10 -9 -8 ------- Run | Yrd Mat Min Exi Min Mat Traps Triggered 1 | . 1 . . . . Indirectly . | . . . . . . Trap Hack Attempts . | . . . . . . Triggered . | . . . . . . Disarmed . | . . . . . . Reprogrammed . | . . . . . . Reused . | . . . . . . Traps Extracted . | . . . . . . Installed . | . . . . . . Triggered . | . . . . . . Machines | -11 -10 -10 -10 -9 -8 ---------- Run | Yrd Mat Min Exi Min Mat Machines Disabled 4 | . 2 . . . 2 Max in Single Turn 2 | . 1 . . . 2 Machines Repaired . | . . . . . . Machines Dismantled . | . . . . . . Machines Sabotaged . | . . . . . . Overloaded Fab Kills . | . . . . . . Hacking | -11 -10 -10 -10 -9 -8 --------- Run | Yrd Mat Min Exi Min Mat Machines Accessed 12 | . 7 1 4 . . Terminals 6 | . 6 . . . . Fabricators . | . . . . . . Repair Stations 1 | . 1 . . . . Recycling Units . | . . . . . . Scanalyzers . | . . . . . . Garrison Access . | . . . . . . Total Hacks 78 | . 28 1 49 . . Successful 69 | . 19 1 49 . . Failed 9 | . 9 . . . . Catastrophic 1 | . 1 . . . . Database Lockouts . | . . . . . . Manual 19 | . 16 1 2 . . Terminals 21 | . 21 . . . . Fabricators . | . . . . . . Repair Stations 7 | . 7 . . . . Recycling Units . | . . . . . . Scanalyzers . | . . . . . . Garrison Access . | . . . . . . Terminal Hacks 58 | . 8 1 49 . . Record 50 | . 1 . 49 . . Open Door 1 | . . 1 . . . Recycling Unit Index 1 | . 1 . . . . Alert Level 1 | . 1 . . . . Dispatch Records 1 | . 1 . . . . Maintenance Status 1 | . 1 . . . . Investigation Status 1 | . 1 . . . . Hauler Manifests 1 | . 1 . . . . Zone Layout 1 | . 1 . . . . Fabricator Hacks . | . . . . . . Repair Station Hacks 5 | . 5 . . . . Scan Component 3 | . 3 . . . . Repair 2 | . 2 . . . . Recycling Unit Hacks . | . . . . . . Scanalyzer . | . . . . . . Garrison Access Hacks . | . . . . . . Unauthorized Hacks 6 | . 6 . . . . Terminals 6 | . 6 . . . . Assimilate 2 | . 2 . . . . Botnet 4 | . 4 . . . . Fabricators . | . . . . . . Repair Stations . | . . . . . . Recycling Units . | . . . . . . Scanalyzers . | . . . . . . Garrison Access . | . . . . . . Data Cores Recovered . | . . . . . . Used . | . . . . . . Hacking Detections 7 | . 7 . . . . Full Trace Events 3 | . 3 . . . . Feedback Events 1 | . 1 . . . . Corruption 1 | . 1 . . . . Feedback Blocked . | . . . . . . Robot Schematics Acquired . | . . . . . . Robots Built . | . . . . . . Authchips . | . . . . . . Time . | . . . . . . Total Robot Build Rating . | . . . . . . Part Schematics Acquired . | . . . . . . Parts Built . | . . . . . . Authchips . | . . . . . . Time . | . . . . . . Total Part Build Rating . | . . . . . . Parts Repaired 2 | . 2 . . . . Time 52 | . 52 . . . . Parts Recycled . | . . . . . . Recycled Matter . | . . . . . . Retrieved Matter . | . . . . . . Retrieved Components . | . . . . . . Parts Scanalyzed . | . . . . . . Part Schematics Acquired . | . . . . . . Parts Damaged . | . . . . . . Bothacking | -11 -10 -10 -10 -9 -8 ------------ Run | Yrd Mat Min Exi Min Mat Used RIF Installer . | . . . . . . Robots Hacked . | . . . . . . Non-combat . | . . . . . . Combat . | . . . . . . Robot Hacks Applied . | . . . . . . Relay Couplers Released . | . . . . . . Fabnet Peak Effective % . | . . . . . . Robots Rewired . | . . . . . . Allies Hacked . | . . . . . . Hacks Repelled . | . . . . . . Allies | -11 -10 -10 -10 -9 -8 -------- Run | Yrd Mat Min Exi Min Mat Total Allies 4 | . . . . 4 . Largest Group 3 | . . . . 3 2 Highest-Rated Group 60 | . . . . 60 42 Highest-Rated Ally 34 | . . . . 34 34 Total Orders 5 | . . . . 5 . STAY 2 | . . . . 2 . FOLLOW 1 | . . . . 1 . GUARD 2 | . . . . 2 . Ally Attacks 16 | . . . . 15 1 Total Damage 223 | . . . . 211 12 Kills 2 | . . . . 2 . Allies Corrupted . | . . . . . . Allies Melted . | . . . . . . Field Lobotomies 4 | . . . . 4 . Intel | -11 -10 -10 -10 -9 -8 ------- Run | Yrd Mat Min Exi Min Mat Robot Analysis Total . | . . . . . . Derelict Logs Recovered 2 | . . 1 . 1 . Drone Launches . | . . . . . . Drone Recoveries . | . . . . . . Exploration | -11 -10 -10 -10 -9 -8 ------------- Run | Yrd Mat Min Exi Min Mat Turns Passed 5408 | 290 1583 698 1655 987 195 Spaces Moved 2871 | 178 1101 334 788 355 115 Core 3 | 3 . . . . . Treads . | . . . . . . Legs 2850 | 157 1101 334 788 355 115 Wheels 18 | 18 . . . . . Hover . | . . . . . . Flight . | . . . . . . Fastest Speed 50 | 50 120 120 120 260 120 Average Speed 166 | 114 120 157 207 269 127 Slowest Speed 470 | 120 190 190 260 470 190 Overloaded Moves . | . . . . . . Propulsion Burnouts . | . . . . . . Robots Hopped . | . . . . . . Cave-ins Triggered . | . . . . . . Time Travels 1 | . . . 1 . . Exploration Rate (%) 57 | 11 98 56 93 73 13 Regions Visited 5 Branch Regions 3 Pre-discovered Areas 1 | . . . 1 . . Known Exits Taken . | . . . . . . Unknown Exits Taken 5 | 1 1 1 1 1 . Scrap Searched 3 | . . 2 . 1 . Spaces Dug 1 | . . 1 . . . Terrain Destroyed 50 | . . 1 . . 49 Melee 1 | . . 1 . . . Projectile . | . . . . . . AOE 49 | . . . . . 49 Terrain Rammed . | . . . . . . Walls Destroyed . | . . . . . . Machines Disabled . | . . . . . . Actions | -11 -10 -10 -10 -9 -8 --------- Run | Yrd Mat Min Exi Min Mat Total 3297 | 229 1285 444 806 374 159 Wait 131 | . 76 39 2 . 14 Move 2866 | 177 1100 333 787 354 115 Hop . | . . . . . . Pick Up 63 | 16 22 6 4 8 7 Fast Attach 2 | . 1 1 . . . Attach 22 | 7 4 3 1 3 4 Detach . | . . . . . . Swap 43 | 5 11 12 4 2 9 Drop 45 | 3 20 10 3 1 8 Fire 108 | 21 44 35 1 5 2 Melee 5 | . . 5 . . . Ram . | . . . . . . Kick 8 | . 7 . . 1 . Crush . | . . . . . . Escape Stasis . | . . . . . . Rewire 4 | . . . 4 . . Trap . | . . . . . . Miscellaneous . | . . . . . . Route ------- -11/Scrapyard -10/Materials (discovered 5 exits: [*Mat x3] / *Min x2) -10/Mines (discovered 2 exits: [*Mat] / *Exi) -10/Exiles (discovered 2 exits: [*Min x2]) -9/Mines -8/Materials History --------- Turn | Location | Event 21 | -11/Scrapyard | Discovered new exit (range 14) 291 | -11/Scrapyard | Entered Materials 311 | -10/Materials | Build established: Mutant 404 | -10/Materials | Discovered new exit (range 7) 556 | -10/Materials | Discovered new exit (range 15) 593 | -10/Materials | Repaired Med. Matter Pod 620 | -10/Materials | Repaired Lgt. Armor Plating 1249 | -10/Materials | Discovered new exit (range 6) 1277 | -10/Materials | Discovered new exit (range 14) 1346 | -10/Materials | Discovered new exit (range 19) 1874 | -10/Materials | Entered Mines 1877 | -10/Mines | Found the Drone Emporium 1895 | -10/Mines | Found Prototype Device 1896 | -10/Mines | Identified Thief Drone Bay 2282 | -10/Mines | Core integrity fell below 50% 2522 | -10/Mines | Learned Materials stockpile data 2524 | -10/Mines | Discovered new exit (range 4) 2558 | -10/Mines | A weapon hastily lodged in a ceiling crevice suddenly fell to the ground 2567 | -10/Mines | Deemed a non-threat by the Exiles lab entrance 2567 | -10/Mines | Discovered new exit (range 5) 2572 | -10/Mines | Entered Exiles 2593 | -10/Exiles | Discovered new exit (range 15) 2616 | -10/Exiles | Met 8R-AWN 2637 | -10/Exiles | Met EX-HEX 2707 | -10/Exiles | Met EX-BIN 2843 | -10/Exiles | Met EX-DEC 3057 | -10/Exiles | Visited The Gauntlet 3373 | -10/Exiles | Learned location of Zion (-7) 3535 | -10/Exiles | Discovered new exit (range 12) 3793 | -10/Exiles | Aligned with FarCom system 3795 | -10/Exiles | Given EX-Vault access code 3918 | -10/Exiles | Opened EX-Vault 3933 | -10/Exiles | Found Prototype Device 3934 | -10/Exiles | Identified Chronowheel 3934 | -10/Exiles | Activated Chronowheel 3934 | -10/Exiles | Spacetime reconverged on an earlier point 3955 | -10/Exiles | Found Prototype Special Weapon 3956 | -10/Exiles | Identified Field Lobotomy Kit 4012 | -10/Exiles | Warned to stay clear of 0b10 Research branches 4227 | -10/Exiles | Left Exiles lab with Field Lobotomy Kit 4227 | -10/Exiles | Entered Mines 4235 | -9/Mines | Assimilated G-34 Mercenary with FLK Orb 4238 | -9/Mines | Assimilated G-34 Mercenary with FLK Orb 4532 | -9/Mines | Build established: Skirmisher 4539 | -9/Mines | Assimilated L-31 Rogue with FLK Orb 4621 | -9/Mines | Assembled infested the area 4726 | -9/Mines | Found a damaged Exp. Sensor Array with a note attached 4731 | -9/Mines | Found Prototype Device 4732 | -9/Mines | Identified Exp. Sensor Array 4946 | -9/Mines | Assimilated D-53 Grenadier with FLK Orb 5201 | -9/Mines | Discovered new exit (range 6) 5214 | -9/Mines | Entered Materials 5214 | -8/Materials | Accompanied by 2 allies 5214 | -8/Materials | Evolved 4 slots: Propulsion x2, Utility x2 5409 | -8/Materials | Self-destructed Last Messages --------------- 05260_ Dropped Imp. Terrain Scanner. 05260_ Acquired Prototype Energy Cannon. 05291_ Dropped Shotgun. 05292_ Acquired Prototype Energy Gun. 05297_ Identified Imp. Medium Laser. 05299_ Identified Adv. Beam Cannon. 05344_ K-01 Serf collects debris. 05378_ Dropped Shotgun. 05378_ Acquired Unknown Device. 05379_ Dropped Lgt. Ion Engine. 05384_ Acquired Minigun. 05407_ Fusion Modulator explodes. 05407_ T-07 Excavator destroyed. 05407_ Lgt. Armor Plating destroyed. 05407_ Destroyed Lgt. Armor Plating. 05407_ Mercenary 2a destroyed. [Achievement: Backstab] 05407_ Grenadier 2a destroyed. 05407_ Destroyed Imp. Hover Unit. 05409_ Dropped Aluminum Leg. Map ----- +----------------------------------------------------+ | ?????????????????????????????????????? | | ?????????????????????????????????????? | | ?????????????????????????????????????? | | ?????????????????????????????????????? | | ????????????????!????????????????????? | | ?????????????????????????????????????? | | ?????????????????????????????????????? | | ?????????????????????????????????????? | | ?????????????????????????????????????? | | ?????????????????????????????????????? | | ???????????????????????##########????? | | ???????????????????????# #????? | | ???????????????????????#[* """""?????? | | ???????????????????????# """""?????? | | ???????????????????????# """""?????? | | ?????????????????????### """""#????? | | ??????????????? ?????? + """""#????? | | ???????????????T"??##### """""#????? | | ???????????????? ## ; """""####?? | | ????????????????##; ; # !##? | | ????????????????#;;;;;;;;;;;+##+# !#? | | ????????????????#; ; !#? | | ????????????????#; !#? | | ????????????????#; !#? | | ????????????????# ! !##? | | ????????????????#; =@= ####?? | | ????????????????#; =% #??? | | ????????????????#; ; #??? | | ????????????????#; ; """ #??? | | ??????????? ?## !; """ #??? | | ??????????? ?#;;;;;;;;; """ #??? | | ??????????? ?### # ## #??? | | ???????????# ???######?# #??? | | ???????????# ??????????#w "" #??? | | ???????????# #?????????#u "Y #??? | | ???????????+ ########### "" #??? | | ???????????# #??? | | ???????????# #??? | | ??????#+#??# """ """ #####+## #??? | | ??????# #??# """ """ ## # #??? | | ??????# #??# """ """ ## """ # #??? | | ??????# #??# ## """ ####??? | | ??????# #??# + """ #?????? | | ####### #### ########### """ #?????? | | #?????????# #?????? | | ############ #?????????# """ #?????? | | ???????######+######?????# """ #?????? | | ???????# #?????# """ #?????? | | ???????# #?????# """ #?????? | | ???????# """ #?????? ? #?????? | +----------------------------------------------------+ Best States ------------- Heat Dissipation 31 Energy Generation 10 Energy Capacity 125 Matter Stores 300 Matter Capacity 300 Sight Range 16 Robot Scan Range 20 Terrain Scan Range 16 Terrain Scan Density 10 Armor Coverage 150 Evasion (%) 55 Item Schematics ----------------- None Robot Schematics ------------------ None Fabricated ------------ Nothing Alien Tech Used ----------------- None Achievements -------------- Backstab Quantum Hacking Tourist Challenges ------------ None Game ------ Seed TeslaRecyclingPropulsion Manual? 0 Play Time 01:18:20 Cumulative 6.6 hours Start 2024.07.09 @ 15:58:42 End 2024.07.10 @ 14:10:12 Sessions 3 Manual Loads 0 Difficulty Rogue Special Mode None Game No. 4 Rogue 4 Adventurer 0 Explorer 0 Win Type - Total 0 Types 0/0/0/0/0/0/0/0/0 Lore% 8 Gallery% 6 Achievement% 11 Wizard Run 0 Options --------- Layout 1 ASCII 0 Keyboard 0 Movement Numpad Keybinds 0 Fullscreen 1 Font 24/Smallcaps Map View 50x35 Zoom Use 0% Tactical HUD 1 Map Filters NONE Filters NONE Steam 1 RUN: 25509a45-afaa-4866-a24d-c57411251503